[Event "Titled Tuesday Blitz July 11 Late 2023"]
[White "Domingo Nunez, Ruben"]
[Black "Buchenau, Frank"]
[WhiteFideId "22245570"]
[BlackFideId "4604350"]
[WhiteElo "2555"]
[BlackElo "2415"]
[Result "0-1"]
[Round "10"]
[TimeControl "180+2"]
[Date "2023.07.11"]
[WhiteClock "0:01:23"]
[BlackClock "0:00:25"]
[Board "58"]

1. Nf3 {[%clk 0:03:00]}  Nf6 {[%clk 0:02:59]} 2. g3 {[%clk 0:03:00]}  b6 {[%clk 0:02:59]} 3. Bg2 {[%clk 0:03:01]}  Bb7 {[%clk 0:02:59]} 4. O-O {[%clk 0:03:01]}  e6 {[%clk 0:03:00]} 5. b3 {[%clk 0:03:02]}  Be7 {[%clk 0:02:58]} 6. Bb2 {[%clk 0:03:02]}  O-O {[%clk 0:02:59]} 7. e3 {[%clk 0:03:03]}  c5 {[%clk 0:02:58]} 8. Qe2 {[%clk 0:03:03]}  d5 {[%clk 0:02:54]} 9. d3 {[%clk 0:03:04]}  Nc6 {[%clk 0:02:54]} 10. Nbd2 {[%clk 0:03:04]}  Qc7 {[%clk 0:02:49]} 11. Rac1 {[%clk 0:03:04]}  e5 {[%clk 0:02:47]} 12. c4 {[%clk 0:02:59]}  d4 {[%clk 0:02:46]} 13. e4 {[%clk 0:02:58]}  Ne8 {[%clk 0:02:42]} 14. a3 {[%clk 0:02:58]}  Nd6 {[%clk 0:02:41]} 15. Ne1 {[%clk 0:02:51]}  Rae8 {[%clk 0:02:30]} 16. f4 {[%clk 0:02:50]}  f5 {[%clk 0:02:23]} 17. exf5 {[%clk 0:02:46]}  exf4 {[%clk 0:02:17]} 18. Bd5+ {[%clk 0:02:18]}  Kh8 {[%clk 0:02:16]} 19. g4 {[%clk 0:02:19]}  Bg5 {[%clk 0:02:04]} 20. Qg2 {[%clk 0:02:20]}  f3 {[%clk 0:01:52]} 21. Nexf3 {[%clk 0:02:19]}  Be3+ {[%clk 0:01:47]} 22. Kh1 {[%clk 0:02:20]}  Nd8 {[%clk 0:01:27]} 23. Bxb7 {[%clk 0:02:21]}  N8xb7 {[%clk 0:01:25]} 24. Rce1 {[%clk 0:02:20]}  Nd8 {[%clk 0:01:03]} 25. b4 {[%clk 0:02:19]}  N8f7 {[%clk 0:00:58]} 26. Nb3 {[%clk 0:02:17]}  Re7 {[%clk 0:00:50]} 27. Bc1 {[%clk 0:02:17]}  Rfe8 {[%clk 0:00:50]} 28. Bxe3 {[%clk 0:02:15]}  Rxe3 {[%clk 0:00:49]} 29. Rxe3 {[%clk 0:02:15]}  Rxe3 {[%clk 0:00:47]} 30. Nc1 {[%clk 0:01:47]}  Qe7 {[%clk 0:00:45]} 31. Qf2 {[%clk 0:01:41]}  h6 {[%clk 0:00:42]} 32. Re1 {[%clk 0:01:35]}  Rxf3 {[%clk 0:00:39]} 33. Rxe7 {[%clk 0:01:27]}  Rxf2 {[%clk 0:00:38]} 34. Kg1 {[%clk 0:01:28]}  Rd2 {[%clk 0:00:31]} 35. Nb3 {[%clk 0:01:28]}  Rxd3 {[%clk 0:00:31]} 36. bxc5 {[%clk 0:01:29]}  Rxb3 {[%clk 0:00:28]} 37. c6 {[%clk 0:01:23]}  Rc3 {[%clk 0:00:25]} 0-1


[Site "https://www.chess.com"]

[Event "Titled Tuesday Blitz July 11 Late 2023"]
[White "Harriott, Tyrell"]
[Black "Karttunen, Mika"]
[WhiteFideId "2086484"]
[BlackFideId "502081"]
[WhiteElo "2410"]
[BlackElo "2550"]
[Result "0-1"]
[Round "10"]
[TimeControl "180+2"]
[Date "2023.07.11"]
[WhiteClock "0:00:04"]
[BlackClock "0:00:20"]
[Board "59"]

1. d4 {[%clk 0:03:00]}  Nf6 {[%clk 0:02:51]} 2. e3 {[%clk 0:03:00]}  e6 {[%clk 0:02:51]} 3. Bd3 {[%clk 0:03:00]}  c5 {[%clk 0:02:50]} 4. f4 {[%clk 0:03:00]}  cxd4 {[%clk 0:02:45]} 5. exd4 {[%clk 0:03:01]}  b6 {[%clk 0:02:46]} 6. Nf3 {[%clk 0:03:01]}  Bb7 {[%clk 0:02:46]} 7. O-O {[%clk 0:03:01]}  Be7 {[%clk 0:02:46]} 8. Nbd2 {[%clk 0:03:00]}  O-O {[%clk 0:02:46]} 9. Qe2 {[%clk 0:03:00]}  a6 {[%clk 0:02:42]} 10. c3 {[%clk 0:02:59]}  d6 {[%clk 0:02:37]} 11. b3 {[%clk 0:02:54]}  Nbd7 {[%clk 0:02:37]} 12. Bb2 {[%clk 0:02:53]}  b5 {[%clk 0:02:33]} 13. Rac1 {[%clk 0:02:52]}  Nb6 {[%clk 0:02:33]} 14. Ng5 {[%clk 0:02:36]}  h6 {[%clk 0:02:30]} 15. Nge4 {[%clk 0:02:36]}  Re8 {[%clk 0:02:04]} 16. Kh1 {[%clk 0:02:34]}  Rc8 {[%clk 0:02:04]} 17. Qf3 {[%clk 0:02:25]}  Nxe4 {[%clk 0:01:47]} 18. Nxe4 {[%clk 0:02:15]}  f5 {[%clk 0:01:28]} 19. Nf6+ {[%clk 0:02:14]}  Bxf6 {[%clk 0:01:29]} 20. Qxb7 {[%clk 0:02:13]}  Ra8 {[%clk 0:01:15]} 21. Qf3 {[%clk 0:02:06]}  d5 {[%clk 0:01:12]} 22. Ba3 {[%clk 0:02:00]}  Be7 {[%clk 0:01:07]} 23. Bb2 {[%clk 0:01:57]}  Nc8 {[%clk 0:01:07]} 24. c4 {[%clk 0:01:55]}  bxc4 {[%clk 0:00:52]} 25. bxc4 {[%clk 0:01:54]}  Nb6 {[%clk 0:00:51]} 26. c5 {[%clk 0:01:50]}  Nd7 {[%clk 0:00:47]} 27. Qe2 {[%clk 0:01:45]}  Bf8 {[%clk 0:00:40]} 28. Bxa6 {[%clk 0:01:38]}  Nf6 {[%clk 0:00:36]} 29. a3 {[%clk 0:01:31]}  Ne4 {[%clk 0:00:36]} 30. Bb7 {[%clk 0:01:26]}  Ra7 {[%clk 0:00:33]} 31. c6 {[%clk 0:01:25]}  Qc7 {[%clk 0:00:33]} 32. Rf3 {[%clk 0:01:10]}  Bd6 {[%clk 0:00:33]} 33. g3 {[%clk 0:01:09]}  Qb6 {[%clk 0:00:32]} 34. Qc2 {[%clk 0:01:04]}  Bc7 {[%clk 0:00:31]} 35. Rb3 {[%clk 0:01:03]}  Qa5 {[%clk 0:00:31]} 36. Bc3 {[%clk 0:01:03]}  Qa4 {[%clk 0:00:32]} 37. Bb4 {[%clk 0:00:58]}  Kf7 {[%clk 0:00:22]} 38. Kg2 {[%clk 0:00:55]}  Rg8 {[%clk 0:00:20]} 39. Rf3 {[%clk 0:00:44]}  g5 {[%clk 0:00:20]} 40. fxg5 {[%clk 0:00:41]}  Qxc2+ {[%clk 0:00:19]} 41. Rxc2 {[%clk 0:00:41]}  hxg5 {[%clk 0:00:20]} 42. Ra2 {[%clk 0:00:34]}  Ra4 {[%clk 0:00:19]} 43. Rb3 {[%clk 0:00:33]}  g4 {[%clk 0:00:18]} 44. Bc5 {[%clk 0:00:27]}  Nxc5 {[%clk 0:00:18]} 45. dxc5 {[%clk 0:00:27]}  Ra5 {[%clk 0:00:18]} 46. Rc2 {[%clk 0:00:25]}  e5 {[%clk 0:00:18]} 47. Rf2 {[%clk 0:00:24]}  Ke6 {[%clk 0:00:18]} 48. Rc2 {[%clk 0:00:22]}  d4 {[%clk 0:00:19]} 49. a4 {[%clk 0:00:18]}  e4 {[%clk 0:00:18]} 50. Rb4 {[%clk 0:00:17]}  d3 {[%clk 0:00:18]} 51. Rd2 {[%clk 0:00:17]}  Rd8 {[%clk 0:00:17]} 52. Kf2 {[%clk 0:00:17]}  Kd5 {[%clk 0:00:18]} 53. Ke3 {[%clk 0:00:17]}  Kxc5 {[%clk 0:00:18]} 54. Rb5+ {[%clk 0:00:15]}  Rxb5 {[%clk 0:00:18]} 55. axb5 {[%clk 0:00:16]}  Kxb5 {[%clk 0:00:19]} 56. Rb2+ {[%clk 0:00:14]}  Kc5 {[%clk 0:00:19]} 57. Kd2 {[%clk 0:00:14]}  Kd4 {[%clk 0:00:19]} 58. Rb4+ {[%clk 0:00:14]}  Kc5 {[%clk 0:00:19]} 59. Ra4 {[%clk 0:00:14]}  e3+ {[%clk 0:00:17]} 60. Kxe3 {[%clk 0:00:13]}  d2 {[%clk 0:00:18]} 61. Ra1 {[%clk 0:00:05]}  d1=Q {[%clk 0:00:18]} 62. Rxd1 {[%clk 0:00:05]}  Rxd1 {[%clk 0:00:19]} 63. Kf2 {[%clk 0:00:05]}  Rd2+ {[%clk 0:00:19]} 64. Kg1 {[%clk 0:00:05]}  Kd4 {[%clk 0:00:19]} 65. Ba6 {[%clk 0:00:04]}  Ke3 {[%clk 0:00:19]} 66. Bf1 {[%clk 0:00:04]}  Rc2 {[%clk 0:00:20]} 67. Bg2 {[%clk 0:00:04]}  Rc1+ {[%clk 0:00:20]} 68. Bf1 {[%clk 0:00:04]}  Rb1 {[%clk 0:00:21]} 69. Kg2 {[%clk 0:00:04]}  Rb2+ {[%clk 0:00:20]} 70. Kg1 {[%clk 0:00:03]}  Rc2 {[%clk 0:00:20]} 71. Bg2 {[%clk 0:00:03]}  Rc5 {[%clk 0:00:19]} 72. Bf1 {[%clk 0:00:02]}  Rxc6 {[%clk 0:00:19]} 73. Bg2 {[%clk 0:00:03]}  Rc1+ {[%clk 0:00:19]} 74. Bf1 {[%clk 0:00:04]}  Bb6 {[%clk 0:00:20]} 75. Kg2 {[%clk 0:00:04]}  Rc2+ {[%clk 0:00:20]} 76. Kg1 {[%clk 0:00:03]}  Kd2+ {[%clk 0:00:21]} 77. Kh1 {[%clk 0:00:02]}  Ke1 {[%clk 0:00:21]} 78. h4 {[%clk 0:00:03]}  gxh3 {[%clk 0:00:20]} 79. Bg2 {[%clk 0:00:03]}  hxg2+ {[%clk 0:00:20]} 80. Kh2 {[%clk 0:00:03]}  g1=Q+ {[%clk 0:00:20]} 81. Kh3 {[%clk 0:00:04]}  Rh2# {[%clk 0:00:20]} 0-1


[Site "https://www.chess.com"]

[Event "Titled Tuesday Blitz July 11 Late 2023"]
[White "Garmendiarov"]
[Black "MFatigue"]
[WhiteElo "2375"]
[BlackElo "2547"]
[Result "1/2-1/2"]
[Round "10"]
[TimeControl "180+2"]
[Date "2023.07.11"]
[WhiteClock "0:00:03"]
[BlackClock "0:00:05"]
[Board "60"]

1. e4 {[%clk 0:03:00]}  e6 {[%clk 0:03:00]} 2. d4 {[%clk 0:03:00]}  d5 {[%clk 0:03:00]} 3. Nc3 {[%clk 0:03:01]}  Nf6 {[%clk 0:03:01]} 4. e5 {[%clk 0:03:01]}  Nfd7 {[%clk 0:03:01]} 5. f4 {[%clk 0:03:02]}  c5 {[%clk 0:03:02]} 6. Nf3 {[%clk 0:03:03]}  Nc6 {[%clk 0:03:02]} 7. Be3 {[%clk 0:03:03]}  a6 {[%clk 0:03:03]} 8. a3 {[%clk 0:03:03]}  b5 {[%clk 0:03:01]} 9. Bd3 {[%clk 0:02:54]}  Qb6 {[%clk 0:02:47]} 10. dxc5 {[%clk 0:02:37]}  Bxc5 {[%clk 0:02:48]} 11. Bxc5 {[%clk 0:02:35]}  Nxc5 {[%clk 0:02:49]} 12. Qe2 {[%clk 0:01:58]}  Bb7 {[%clk 0:02:24]} 13. Qf2 {[%clk 0:01:45]}  O-O-O {[%clk 0:02:20]} 14. O-O {[%clk 0:01:41]}  f6 {[%clk 0:01:46]} 15. Ne2 {[%clk 0:01:27]}  Nd7 {[%clk 0:01:36]} 16. Qxb6 {[%clk 0:01:19]}  Nxb6 {[%clk 0:01:37]} 17. Ned4 {[%clk 0:01:19]}  Nxd4 {[%clk 0:01:29]} 18. Nxd4 {[%clk 0:01:20]}  Rde8 {[%clk 0:01:27]} 19. Rae1 {[%clk 0:01:17]}  Kd7 {[%clk 0:01:26]} 20. f5 {[%clk 0:01:07]}  fxe5 {[%clk 0:01:06]} 21. Rxe5 {[%clk 0:01:07]}  exf5 {[%clk 0:01:03]} 22. Rexf5 {[%clk 0:00:48]}  Re7 {[%clk 0:00:55]} 23. Rf7 {[%clk 0:00:46]}  g6 {[%clk 0:00:43]} 24. R1f6 {[%clk 0:00:40]}  Nc4 {[%clk 0:00:35]} 25. b3 {[%clk 0:00:22]}  Ne5 {[%clk 0:00:32]} 26. Rxe7+ {[%clk 0:00:21]}  Kxe7 {[%clk 0:00:33]} 27. Rb6 {[%clk 0:00:21]}  Bc8 {[%clk 0:00:30]} 28. Nc6+ {[%clk 0:00:17]}  Nxc6 {[%clk 0:00:29]} 29. Rxc6 {[%clk 0:00:18]}  Kd7 {[%clk 0:00:25]} 30. Rf6 {[%clk 0:00:14]}  Re8 {[%clk 0:00:24]} 31. Rf7+ {[%clk 0:00:13]}  Re7 {[%clk 0:00:23]} 32. Rxe7+ {[%clk 0:00:13]}  Kxe7 {[%clk 0:00:24]} 33. Kf2 {[%clk 0:00:14]}  Kd6 {[%clk 0:00:24]} 34. Ke3 {[%clk 0:00:14]}  Ke5 {[%clk 0:00:25]} 35. g3 {[%clk 0:00:12]}  Be6 {[%clk 0:00:23]} 36. c3 {[%clk 0:00:12]}  Bf7 {[%clk 0:00:20]} 37. a4 {[%clk 0:00:11]}  Be8 {[%clk 0:00:20]} 38. axb5 {[%clk 0:00:11]}  Bxb5 {[%clk 0:00:13]} 39. Bxb5 {[%clk 0:00:10]}  axb5 {[%clk 0:00:14]} 40. h3 {[%clk 0:00:10]}  g5 {[%clk 0:00:12]} 41. g4 {[%clk 0:00:08]}  h6 {[%clk 0:00:06]} 42. b4 {[%clk 0:00:08]}  Ke6 {[%clk 0:00:07]} 43. Kd4 {[%clk 0:00:07]}  Kd6 {[%clk 0:00:07]} 44. Kd3 {[%clk 0:00:07]}  Ke6 {[%clk 0:00:06]} 45. Ke3 {[%clk 0:00:05]}  Ke5 {[%clk 0:00:06]} 46. Kd3 {[%clk 0:00:04]}  Ke6 {[%clk 0:00:04]} 47. Kd4 {[%clk 0:00:03]}  Kd6 {[%clk 0:00:05]} 48. Kd3 {[%clk 0:00:03]}  Ke6 {[%clk 0:00:05]} 1/2-1/2


[Site "https://www.chess.com"]

[Event "Titled Tuesday Blitz July 11 Late 2023"]
[White "Milovic, Aleksandra"]
[Black "Ambartsumova, Karina"]
[WhiteFideId "933988"]
[BlackFideId "4166299"]
[WhiteElo "2099"]
[BlackElo "2596"]
[Result "1/2-1/2"]
[Round "10"]
[TimeControl "180+2"]
[Date "2023.07.11"]
[WhiteClock "0:00:17"]
[BlackClock "0:00:04"]
[Board "62"]

1. e4 {[%clk 0:02:58]}  c5 {[%clk 0:03:00]} 2. Nf3 {[%clk 0:02:58]}  a6 {[%clk 0:03:00]} 3. c3 {[%clk 0:02:48]}  d5 {[%clk 0:03:00]} 4. exd5 {[%clk 0:02:46]}  Qxd5 {[%clk 0:03:00]} 5. d4 {[%clk 0:02:47]}  Bg4 {[%clk 0:02:59]} 6. Be2 {[%clk 0:02:46]}  Nf6 {[%clk 0:03:00]} 7. O-O {[%clk 0:02:42]}  e6 {[%clk 0:03:00]} 8. dxc5 {[%clk 0:02:39]}  Qxd1 {[%clk 0:02:54]} 9. Rxd1 {[%clk 0:02:40]}  Bxc5 {[%clk 0:02:54]} 10. Nbd2 {[%clk 0:02:33]}  Nc6 {[%clk 0:02:48]} 11. Nb3 {[%clk 0:02:32]}  Bb6 {[%clk 0:02:38]} 12. h3 {[%clk 0:02:30]}  Bh5 {[%clk 0:02:37]} 13. g4 {[%clk 0:02:23]}  Bg6 {[%clk 0:02:35]} 14. Nbd4 {[%clk 0:02:22]}  Be4 {[%clk 0:02:24]} 15. Nxc6 {[%clk 0:02:19]}  Bxc6 {[%clk 0:02:25]} 16. Ne5 {[%clk 0:02:15]}  Ne4 {[%clk 0:02:16]} 17. Be3 {[%clk 0:02:09]}  Bxe3 {[%clk 0:01:46]} 18. fxe3 {[%clk 0:02:10]}  Nc5 {[%clk 0:01:24]} 19. Nxc6 {[%clk 0:02:08]}  bxc6 {[%clk 0:01:25]} 20. Bf3 {[%clk 0:02:06]}  Rc8 {[%clk 0:01:03]} 21. Rd6 {[%clk 0:02:04]}  Ke7 {[%clk 0:01:04]} 22. Rxc6 {[%clk 0:02:04]}  Rxc6 {[%clk 0:00:58]} 23. Bxc6 {[%clk 0:02:05]}  Nd3 {[%clk 0:00:56]} 24. b3 {[%clk 0:01:40]}  Rc8 {[%clk 0:00:43]} 25. Bb7 {[%clk 0:01:39]}  Rxc3 {[%clk 0:00:43]} 26. Bxa6 {[%clk 0:01:38]}  Nb4 {[%clk 0:00:41]} 27. Bc4 {[%clk 0:01:35]}  Rxe3 {[%clk 0:00:37]} 28. a4 {[%clk 0:01:30]}  Kd6 {[%clk 0:00:26]} 29. a5 {[%clk 0:01:29]}  Nc6 {[%clk 0:00:22]} 30. a6 {[%clk 0:01:28]}  Na7 {[%clk 0:00:22]} 31. Kg2 {[%clk 0:01:23]}  Kc5 {[%clk 0:00:20]} 32. Rd1 {[%clk 0:01:18]}  Kc6 {[%clk 0:00:19]} 33. b4 {[%clk 0:01:12]}  Re4 {[%clk 0:00:16]} 34. Rc1 {[%clk 0:01:10]}  Kb6 {[%clk 0:00:16]} 35. b5 {[%clk 0:01:06]}  Rd4 {[%clk 0:00:10]} 36. Be2 {[%clk 0:01:03]}  Rd2 {[%clk 0:00:09]} 37. Kf1 {[%clk 0:01:01]}  Rb2 {[%clk 0:00:09]} 38. Ra1 {[%clk 0:00:54]}  f5 {[%clk 0:00:08]} 39. gxf5 {[%clk 0:00:52]}  exf5 {[%clk 0:00:09]} 40. Rd1 {[%clk 0:00:48]}  Nxb5 {[%clk 0:00:07]} 41. Bxb5 {[%clk 0:00:46]}  Rxb5 {[%clk 0:00:08]} 42. Rd7 {[%clk 0:00:41]}  Kxa6 {[%clk 0:00:07]} 43. Rxg7 {[%clk 0:00:41]}  Rb7 {[%clk 0:00:07]} 44. Rg5 {[%clk 0:00:27]}  Rf7 {[%clk 0:00:07]} 45. Kf2 {[%clk 0:00:26]}  Kb6 {[%clk 0:00:08]} 46. Kf3 {[%clk 0:00:26]}  Kc6 {[%clk 0:00:06]} 47. Kf4 {[%clk 0:00:26]}  Kd6 {[%clk 0:00:06]} 48. Rxf5 {[%clk 0:00:26]}  Rg7 {[%clk 0:00:06]} 49. Rg5 {[%clk 0:00:23]}  Ra7 {[%clk 0:00:06]} 50. h4 {[%clk 0:00:19]}  Ra4+ {[%clk 0:00:05]} 51. Kg3 {[%clk 0:00:19]}  Ke6 {[%clk 0:00:04]} 52. Rg8 {[%clk 0:00:15]}  Kf6 {[%clk 0:00:04]} 53. Rh8 {[%clk 0:00:16]}  Kg7 {[%clk 0:00:04]} 54. Rd8 {[%clk 0:00:15]}  h6 {[%clk 0:00:04]} 55. Rd7+ {[%clk 0:00:15]}  Kg6 {[%clk 0:00:05]} 56. Rd6+ {[%clk 0:00:15]}  Kh5 {[%clk 0:00:05]} 57. Rd5+ {[%clk 0:00:15]}  Kg6 {[%clk 0:00:05]} 58. Rd6+ {[%clk 0:00:16]}  Kg7 {[%clk 0:00:05]} 59. Rd7+ {[%clk 0:00:17]}  Kg8 {[%clk 0:00:04]} 60. Rd8+ {[%clk 0:00:16]}  Kf7 {[%clk 0:00:04]} 61. Rd7+ {[%clk 0:00:17]}  Kg6 {[%clk 0:00:04]} 62. Rd6+ {[%clk 0:00:17]} 1/2-1/2


[Site "https://www.chess.com"]

[Event "Titled Tuesday Blitz July 11 Late 2023"]
[White "Mei, Austin"]
[Black "Bruedigam, Martin"]
[WhiteFideId "30948479"]
[BlackFideId "24608033"]
[WhiteElo "2496"]
[BlackElo "2542"]
[Result "0-1"]
[Round "10"]
[TimeControl "180+2"]
[Date "2023.07.11"]
[WhiteClock "0:00:00"]
[BlackClock "0:00:32"]
[Board "63"]

1. e4 {[%clk 0:03:00]}  g6 {[%clk 0:02:58]} 2. d4 {[%clk 0:03:00]}  Bg7 {[%clk 0:02:58]} 3. Nc3 {[%clk 0:03:00]}  d6 {[%clk 0:02:58]} 4. Be3 {[%clk 0:03:01]}  a6 {[%clk 0:02:58]} 5. Qd2 {[%clk 0:03:00]}  b5 {[%clk 0:02:57]} 6. h4 {[%clk 0:03:00]}  h5 {[%clk 0:02:56]} 7. Nf3 {[%clk 0:02:59]}  Bb7 {[%clk 0:02:56]} 8. Ng5 {[%clk 0:02:58]}  Nh6 {[%clk 0:02:55]} 9. f3 {[%clk 0:02:55]}  Nd7 {[%clk 0:02:55]} 10. a4 {[%clk 0:02:55]}  b4 {[%clk 0:02:54]} 11. Nd5 {[%clk 0:02:54]}  a5 {[%clk 0:02:54]} 12. Bc4 {[%clk 0:02:51]}  e6 {[%clk 0:02:44]} 13. Nf4 {[%clk 0:02:51]}  Qe7 {[%clk 0:02:36]} 14. Nxg6 {[%clk 0:02:14]}  fxg6 {[%clk 0:02:35]} 15. Nxe6 {[%clk 0:02:14]}  Nb6 {[%clk 0:02:33]} 16. Bb5+ {[%clk 0:01:39]}  c6 {[%clk 0:02:28]} 17. d5 {[%clk 0:00:57]}  cxb5 {[%clk 0:02:13]} 18. Bxb6 {[%clk 0:00:57]}  Bxb2 {[%clk 0:01:49]} 19. O-O {[%clk 0:00:57]}  Kf7 {[%clk 0:01:33]} 20. axb5 {[%clk 0:00:39]}  Bc8 {[%clk 0:01:20]} 21. Ng5+ {[%clk 0:00:35]}  Kg8 {[%clk 0:01:16]} 22. Rxa5 {[%clk 0:00:16]}  Rxa5 {[%clk 0:01:16]} 23. Qxb4 {[%clk 0:00:13]}  Ra2 {[%clk 0:01:04]} 24. Qb3 {[%clk 0:00:11]}  Qb7 {[%clk 0:01:03]} 25. Be3 {[%clk 0:00:07]}  Qa8 {[%clk 0:01:00]} 26. Rb1 {[%clk 0:00:04]}  Bf6 {[%clk 0:00:51]} 27. b6 {[%clk 0:00:04]}  Ra1 {[%clk 0:00:39]} 28. Rxa1 {[%clk 0:00:01]}  Qxa1+ {[%clk 0:00:37]} 29. Kh2 {[%clk 0:00:02]}  Qe5+ {[%clk 0:00:37]} 30. Kg1 {[%clk 0:00:02]}  Qe7 {[%clk 0:00:37]} 31. Ne6 {[%clk 0:00:01]}  Kh7 {[%clk 0:00:33]} 32. b7 {[%clk 0:00:00]}  Bxb7 {[%clk 0:00:32]} 0-1


[Site "https://www.chess.com"]

[Event "Titled Tuesday Blitz July 11 Late 2023"]
[White "Omariev, Maksim"]
[Black "brm72"]
[WhiteFideId "4193423"]
[WhiteElo "2395"]
[BlackElo "2532"]
[Result "0-1"]
[Round "10"]
[TimeControl "180+2"]
[Date "2023.07.11"]
[WhiteClock "0:00:00"]
[BlackClock "0:00:59"]
[Board "65"]

1. e4 {[%clk 0:03:00]}  c6 {[%clk 0:02:59]} 2. Nc3 {[%clk 0:02:57]}  d5 {[%clk 0:03:00]} 3. Nf3 {[%clk 0:02:56]}  dxe4 {[%clk 0:03:00]} 4. Nxe4 {[%clk 0:02:56]}  Nf6 {[%clk 0:03:01]} 5. Ng3 {[%clk 0:02:55]}  h5 {[%clk 0:03:00]} 6. h4 {[%clk 0:02:53]}  Bg4 {[%clk 0:03:00]} 7. Be2 {[%clk 0:02:52]}  e6 {[%clk 0:03:00]} 8. Ne5 {[%clk 0:02:48]}  Bxe2 {[%clk 0:02:49]} 9. Qxe2 {[%clk 0:02:49]}  Nbd7 {[%clk 0:02:49]} 10. Nf3 {[%clk 0:02:33]}  Bd6 {[%clk 0:02:47]} 11. Nf5 {[%clk 0:02:29]}  Qc7 {[%clk 0:02:35]} 12. Ng5 {[%clk 0:02:09]}  O-O {[%clk 0:02:25]} 13. Nxd6 {[%clk 0:01:52]}  Qxd6 {[%clk 0:02:25]} 14. d3 {[%clk 0:01:16]}  Qe5 {[%clk 0:02:10]} 15. Qxe5 {[%clk 0:00:59]}  Nxe5 {[%clk 0:02:10]} 16. Bf4 {[%clk 0:00:59]}  Ng6 {[%clk 0:02:09]} 17. Bg3 {[%clk 0:00:57]}  Rac8 {[%clk 0:02:09]} 18. O-O-O {[%clk 0:00:50]}  Rfd8 {[%clk 0:02:09]} 19. Rhe1 {[%clk 0:00:51]}  Ne7 {[%clk 0:02:08]} 20. c3 {[%clk 0:00:44]}  Nf5 {[%clk 0:02:08]} 21. Kc2 {[%clk 0:00:16]}  Nxg3 {[%clk 0:02:06]} 22. fxg3 {[%clk 0:00:17]}  Rd5 {[%clk 0:02:05]} 23. d4 {[%clk 0:00:16]}  Rcd8 {[%clk 0:02:05]} 24. Nf3 {[%clk 0:00:15]}  Ng4 {[%clk 0:02:02]} 25. Rd2 {[%clk 0:00:11]}  Kf8 {[%clk 0:01:56]} 26. c4 {[%clk 0:00:12]}  R5d7 {[%clk 0:01:55]} 27. Kc3 {[%clk 0:00:11]}  Ke7 {[%clk 0:01:55]} 28. Red1 {[%clk 0:00:10]}  Kf6 {[%clk 0:01:54]} 29. b4 {[%clk 0:00:10]}  Kg6 {[%clk 0:01:54]} 30. a4 {[%clk 0:00:06]}  f6 {[%clk 0:01:54]} 31. Re1 {[%clk 0:00:05]}  Kf5 {[%clk 0:01:53]} 32. Rde2 {[%clk 0:00:05]}  e5 {[%clk 0:01:39]} 33. dxe5 {[%clk 0:00:05]}  Rd3+ {[%clk 0:01:40]} 34. Kc2 {[%clk 0:00:06]}  Ra3 {[%clk 0:01:40]} 35. exf6 {[%clk 0:00:04]}  gxf6 {[%clk 0:01:37]} 36. a5 {[%clk 0:00:04]}  Rdd3 {[%clk 0:01:35]} 37. Nd2 {[%clk 0:00:02]}  Rxg3 {[%clk 0:01:31]} 38. Ne4 {[%clk 0:00:02]}  Ne3+ {[%clk 0:01:16]} 39. Kb2 {[%clk 0:00:01]}  Nxc4+ {[%clk 0:01:15]} 40. Kc1 {[%clk 0:00:02]}  Rgb3 {[%clk 0:01:08]} 41. Rf1+ {[%clk 0:00:02]}  Kg4 {[%clk 0:01:00]} 42. Nxf6+ {[%clk 0:00:02]}  Kg3 {[%clk 0:00:59]} 43. Nxh5+ {[%clk 0:00:02]}  Kxh4 {[%clk 0:01:00]} 44. Rh1+ {[%clk 0:00:00]}  Kg5 {[%clk 0:00:59]} 0-1


[Site "https://www.chess.com"]

[Event "Titled Tuesday Blitz July 11 Late 2023"]
[White "Santos Flores, Alberto"]
[Black "Slovineanu, Viacheslav"]
[WhiteFideId "3601234"]
[BlackFideId "13900510"]
[WhiteElo "2528"]
[BlackElo "2388"]
[Result "1-0"]
[Round "10"]
[TimeControl "180+2"]
[Date "2023.07.11"]
[WhiteClock "0:01:43"]
[BlackClock "0:00:05"]
[Board "67"]

1. e4 {[%clk 0:03:00]}  c6 {[%clk 0:02:59]} 2. c4 {[%clk 0:03:00]}  d5 {[%clk 0:02:59]} 3. exd5 {[%clk 0:03:01]}  cxd5 {[%clk 0:03:00]} 4. cxd5 {[%clk 0:03:02]}  Nf6 {[%clk 0:03:00]} 5. Qa4+ {[%clk 0:03:02]}  Nbd7 {[%clk 0:02:57]} 6. Nc3 {[%clk 0:03:03]}  g6 {[%clk 0:02:57]} 7. Bc4 {[%clk 0:03:03]}  Bg7 {[%clk 0:02:55]} 8. Nf3 {[%clk 0:03:04]}  O-O {[%clk 0:02:55]} 9. d3 {[%clk 0:03:02]}  a6 {[%clk 0:02:54]} 10. Qa3 {[%clk 0:03:02]}  Qc7 {[%clk 0:02:25]} 11. O-O {[%clk 0:02:58]}  Rb8 {[%clk 0:02:23]} 12. Qxe7 {[%clk 0:02:55]}  Re8 {[%clk 0:02:17]} 13. d6 {[%clk 0:02:50]}  Rxe7 {[%clk 0:02:05]} 14. dxc7 {[%clk 0:02:49]}  Ra8 {[%clk 0:02:05]} 15. Bf4 {[%clk 0:02:47]}  Nb6 {[%clk 0:01:59]} 16. Bb3 {[%clk 0:02:43]}  Nh5 {[%clk 0:01:51]} 17. Bd6 {[%clk 0:02:36]}  Re8 {[%clk 0:01:38]} 18. Ng5 {[%clk 0:02:28]}  Be6 {[%clk 0:01:35]} 19. Nxe6 {[%clk 0:02:27]}  fxe6 {[%clk 0:01:35]} 20. Rfe1 {[%clk 0:02:25]}  Bxc3 {[%clk 0:00:51]} 21. bxc3 {[%clk 0:02:23]}  Nd5 {[%clk 0:00:51]} 22. Bxd5 {[%clk 0:02:18]}  exd5 {[%clk 0:00:50]} 23. Rxe8+ {[%clk 0:02:03]}  Rxe8 {[%clk 0:00:50]} 24. Rb1 {[%clk 0:02:03]}  Ng7 {[%clk 0:00:33]} 25. g4 {[%clk 0:02:00]}  b5 {[%clk 0:00:10]} 26. a4 {[%clk 0:02:00]}  Kf7 {[%clk 0:00:10]} 27. axb5 {[%clk 0:02:00]}  Ke6 {[%clk 0:00:10]} 28. Bg3 {[%clk 0:01:55]}  axb5 {[%clk 0:00:10]} 29. Rxb5 {[%clk 0:01:53]}  Rc8 {[%clk 0:00:09]} 30. Rb8 {[%clk 0:01:50]}  Kd7 {[%clk 0:00:10]} 31. Rxc8 {[%clk 0:01:50]}  Kxc8 {[%clk 0:00:10]} 32. Be5 {[%clk 0:01:48]}  Ne6 {[%clk 0:00:10]} 33. f4 {[%clk 0:01:48]}  Kd7 {[%clk 0:00:09]} 34. Kf2 {[%clk 0:01:47]}  Nc5 {[%clk 0:00:09]} 35. Ke3 {[%clk 0:01:47]}  Na4 {[%clk 0:00:08]} 36. f5 {[%clk 0:01:45]}  gxf5 {[%clk 0:00:08]} 37. gxf5 {[%clk 0:01:46]}  Nc5 {[%clk 0:00:08]} 38. Kd4 {[%clk 0:01:44]}  Nb3+ {[%clk 0:00:07]} 39. Kxd5 {[%clk 0:01:44]}  h5 {[%clk 0:00:05]} 40. f6 {[%clk 0:01:43]} 1-0


[Site "https://www.chess.com"]